bitfinex/quotes_BTCUSD_20220202
["timestamp","ask_amount","ask_price","bid_price","bid_amount"]
[1643766274757,0.115068,38430.0,38428.0,0.00245101]
[1643766275559,0.23594544,38429.0,38428.0,0.00245101]
[1643766275758,0.33594544,38429.0,38428.0,0.00245101]
[1643766277964,0.33563229,38429.0,38428.0,0.00245101]
[1643766282259,0.10010462,38429.0,38428.0,0.00245101]
[1643766283260,0.36989414,38429.0,38428.0,0.00245101]
[1643766283657,0.10010462,38429.0,38428.0,0.00245101]
[1643766283859,0.2074909,38429.0,38428.0,0.00245101]
[1643766284058,0.2594909,38429.0,38428.0,0.00245101]
[1643766284360,0.3594909,38429.0,38428.0,0.00245101]
[1643766284858,0.560685,38429.0,38428.0,0.00245101]
[1643766285060,0.35329872,38429.0,38428.0,0.00245101]
[1643766285661,0.56061345,38429.0,38428.0,0.00245101]
[1643766287107,0.35329872,38429.0,38428.0,0.00245101]
[1643766287308,0.55886597,38429.0,38428.0,0.00245101]
[1643766287608,0.35329872,38429.0,38428.0,0.00245101]
[1643766287810,0.56050613,38429.0,38428.0,0.00245101]
[1643766288810,0.35329872,38429.0,38428.0,0.00245101]
[1643766289211,0.55803195,38429.0,38428.0,0.00245101]
[1643766290256,0.35329872,38429.0,38428.0,0.00245101]
[1643766291257,0.15210462,38429.0,38428.0,0.00245101]
[1643766291755,0.05210462,38429.0,38428.0,0.00245101]
[1643766292256,0.30210462,38429.0,38428.0,0.00245101]
[1643766292456,0.05210462,38429.0,38428.0,0.00245101]
[1643766292657,0.15210462,38429.0,38428.0,0.00245101]
[1643766293059,0.15210462,38429.0,38428.0,0.50245101]
[1643766293060,0.00010462,38429.0,38428.0,0.50245101]
[1643766293514,0.00010462,38429.0,38428.0,0.74755075]
[1643766294113,0.00010462,38429.0,38428.0,1.09702175]
[1643766294313,0.00010462,38429.0,38428.0,0.74755075]
[1643766295312,0.00010462,38429.0,38428.0,1.01479198]
[1643766295713,0.01947842,38436.0,38429.0,0.5]
[1643766295914,0.01947842,38436.0,38430.0,0.24548335]
[1643766296113,0.01947842,38436.0,38430.0,0.62606235]
[1643766296514,0.01947842,38436.0,38435.0,0.27329764]
[1643766296713,0.01947842,38436.0,38432.0,0.30868762]
[1643766297364,0.01947842,38436.0,38434.0,0.10264047]
[1643766297770,0.01947842,38436.0,38435.0,0.21144683]
[1643766298168,0.00052158,38438.0,38435.0,0.21144683]
[1643766299168,0.13453142,38439.0,38435.0,0.21144683]
[1643766299370,0.13453142,38439.0,38429.0,0.1155]
[1643766299371,0.19958742,38439.0,38429.0,0.1155]
[1643766299569,0.065059,38437.0,38429.0,0.1155]
[1643766299768,0.065059,38437.0,38429.0,0.1655]
[1643766300081,0.065059,38437.0,38430.0,0.02]
[1643766300372,0.065059,38437.0,38433.0,0.20009482]
[1643766300569,0.130118,38437.0,38431.0,0.31277939]
[1643766300768,0.180118,38437.0,38431.0,0.31277939]
[1643766301615,0.180118,38437.0,38431.0,0.56739297]
[1643766301811,0.180118,38437.0,38431.0,0.30677896]
[1643766302012,0.180118,38437.0,38430.0,0.10512012]
[1643766302913,0.180118,38437.0,38430.0,0.34024737]
[1643766303112,0.21029912,38434.0,38430.0,0.57531005]
[1643766303312,0.00589508,38434.0,38430.0,0.57531005]
[1643766303612,0.00589508,38434.0,38430.0,0.02]
[1643766304215,0.00589508,38434.0,38428.0,0.0034136]
[1643766304412,0.22337225,38432.0,38428.0,0.23509772]
[1643766304665,0.07095508,38434.0,38429.0,0.10280805]
[1643766304859,0.07095508,38434.0,38429.0,0.15280805]
[1643766305261,0.00589508,38434.0,38430.0,0.21467912]
[1643766305461,0.00589508,38434.0,38429.0,0.17280805]
[1643766306662,0.07095508,38434.0,38429.0,0.17280805]
[1643766306965,0.25552486,38433.0,38429.0,0.17280805]
[1643766307161,0.25552486,38433.0,38429.0,0.15280805]
[1643766307562,0.07095508,38434.0,38429.0,0.15280805]
[1643766308609,0.2673963,38433.0,38429.0,0.05]
[1643766308808,0.2673963,38433.0,38428.0,0.00245101]
[1643766309108,0.07095508,38434.0,38428.0,0.0034136]
[1643766309307,0.07095508,38434.0,38431.0,0.02156843]
[1643766309710,0.12095508,38434.0,38431.0,0.02156843]
[1643766310008,0.12095508,38434.0,38433.0,0.25481395]
[1643766310208,0.12095508,38434.0,38431.0,0.02156843]
[1643766310209,0.12095508,38434.0,38431.0,0.26797815]
[1643766310810,0.12095508,38434.0,38431.0,0.04156843]
[1643766311211,0.12095508,38434.0,38431.0,0.02156843]
[1643766314059,0.22368012,38433.0,38431.0,0.02156843]
[1643766314262,0.28874312,38433.0,38431.0,0.02156843]
[1643766314463,0.28874312,38433.0,38430.0,0.02]
[1643766314670,0.28874312,38433.0,38432.0,0.04313686]
[1643766315664,0.065063,38433.0,38432.0,0.04313686]
[1643766316212,0.07064194,38434.0,38432.0,0.04313686]
[1643766317315,0.07064194,38434.0,38432.0,0.33497761]
[1643766319668,0.07064194,38434.0,38432.0,0.29184075]
[1643766319867,0.07064194,38434.0,38433.0,0.02156843]
[1643766320064,0.07064194,38434.0,38433.0,0.04313686]
[1643766320964,0.00589508,38434.0,38433.0,0.04313686]
[1643766323619,0.00122545,38441.0,38435.0,0.5]
[1643766323821,0.01977925,38439.0,38435.0,0.80320328]
[1643766324022,0.00122545,38441.0,38437.0,0.5]
[1643766324221,0.02,38440.0,38438.0,0.349471]
[1643766324420,0.02,38440.0,38439.0,0.54285377]
[1643766324721,0.02,38440.0,38439.0,1.49116936]
[1643766325321,0.00122556,38441.0,38440.0,0.45]
[1643766325520,0.33,38447.0,38441.0,0.5]
[1643766325720,0.33,38447.0,38441.0,0.05]
[1643766325921,0.33,38447.0,38446.0,0.19981245]
[1643766326122,0.33,38447.0,38446.0,0.93833994]
[1643766326326,0.01,38453.0,38446.0,0.98833994]
[1643766326520,0.01,38453.0,38447.0,0.57436148]
[1643766326721,0.02,38449.0,38447.0,0.40807084]
[1643766327179,0.01,38453.0,38448.0,0.565017]
[1643766327477,0.01,38453.0,38449.0,0.51648829]
[1643766327681,0.01,38453.0,38450.0,0.22489048]
[1643766327875,0.01,38453.0,38451.0,0.349471]
[1643766328173,0.01,38453.0,38452.0,0.62945808]
[1643766328474,0.01,38453.0,38452.0,1.33886537]
[1643766328672,0.01,38453.0,38452.0,1.11888871]
[1643766329273,0.01,38453.0,38452.0,1.20617276]
[1643766329773,0.01,38453.0,38452.0,0.85670176]
[1643766329977,0.01,38453.0,38452.0,1.08199095]
[1643766330373,0.02,38455.0,38452.0,1.08199095]
[1643766330579,0.02,38455.0,38452.0,0.4903572]
[1643766330919,0.02,38455.0,38452.0,0.4403572]
[1643766331118,0.00081901,38460.0,38452.0,0.4403572]
[1643766331319,0.02129654,38460.0,38452.0,0.4403572]
[1643766331718,0.21294005,38460.0,38452.0,0.4403572]
[1643766331918,0.00122782,38458.0,38452.0,0.4403572]
[1643766332119,0.27645534,38456.0,38452.0,0.04313686]
[1643766333118,0.27768318,38456.0,38452.0,0.04313686]
[1643766333924,0.27737002,38456.0,38452.0,0.04313686]
[1643766334220,0.23213325,38458.0,38452.0,0.04313686]
[1643766334222,0.02,38457.0,38452.0,0.04313686]
[1643766334421,0.00122784,38456.0,38452.0,0.04313686]
[1643766335267,0.23212613,38457.0,38452.0,0.04313686]
[1643766335461,0.00122784,38456.0,38452.0,0.04313686]
[1643766335663,0.00122784,38456.0,38446.0,0.02]
[1643766335864,0.00122784,38456.0,38454.0,0.02156843]
[1643766336061,0.35,38455.0,38451.0,0.02156843]
[1643766336262,0.4120982,38454.0,38451.0,0.02156843]
[1643766336563,0.20829099,38454.0,38451.0,0.02156843]
[1643766336762,0.20211892,38453.0,38451.0,0.02156843]
[1643766337264,0.35042276,38453.0,38451.0,0.02156843]
[1643766337463,0.76618833,38452.0,38451.0,0.02156843]
[1643766337663,0.81818833,38452.0,38451.0,0.02156843]
[1643766338264,0.31818833,38452.0,38451.0,0.02156843]
[1643766339523,0.51818833,38452.0,38451.0,0.02156843]
[1643766339726,0.66818833,38452.0,38451.0,0.02156843]
[1643766339925,0.96818833,38452.0,38451.0,6.843e-05]
[1643766340528,0.91818833,38452.0,38451.0,6.843e-05]
[1643766340925,0.91818833,38452.0,38446.0,0.02]
[1643766341125,0.24953782,38447.0,38446.0,0.02]
[1643766341326,0.30153782,38447.0,38446.0,0.02]
[1643766342175,0.30153782,38447.0,38440.0,0.30703198]
[1643766342370,0.065048,38446.0,38440.0,0.30703198]
[1643766342569,0.20109266,38441.0,38434.0,0.37498706]
[1643766342769,0.20109266,38441.0,38435.0,0.00096855]
[1643766342770,0.25109266,38441.0,38435.0,0.00096855]
[1643766343179,0.25109266,38441.0,38436.0,0.02]
[1643766344169,0.27109266,38441.0,38436.0,0.02]
[1643766344772,0.22109266,38441.0,38436.0,0.02]
[1643766345776,0.2020431,38440.0,38436.0,0.02]
[1643766346012,0.27109266,38441.0,38436.0,0.02]
[1643766346413,0.052,38440.0,38436.0,0.02]
[1643766347713,0.052,38440.0,38436.0,0.02055]
[1643766347714,0.20144354,38439.0,38436.0,0.02055]
[1643766347914,0.052,38438.0,38436.0,0.02055]
[1643766348114,0.052,38438.0,38436.0,0.00055]
[1643766350871,0.06505123,38440.0,38436.0,0.00055]
[1643766352773,0.26990402,38440.0,38436.0,0.00055]
[1643766353811,0.26535653,38440.0,38436.0,0.00055]
[1643766354012,0.26684972,38440.0,38436.0,0.00055]
[1643766354318,0.06505123,38440.0,38436.0,0.00055]
[1643766354713,0.06505123,38440.0,38436.0,0.24232746]
[1643766354913,0.06505123,38440.0,38436.0,0.00055]
[1643766359373,0.05505123,38440.0,38436.0,0.00055]
[1643766363514,0.01136359,38443.0,38438.0,0.2580185]
[1643766364115,0.09518075,38443.0,38438.0,0.2580185]
[1643766364317,0.08627311,38443.0,38438.0,0.2580185]
[1643766364516,0.08627311,38443.0,38441.0,0.62326715]
[1643766364517,0.021228,38443.0,38441.0,0.62326715]
[1643766364768,0.021228,38443.0,38441.0,0.68830615]
[1643766364968,0.021228,38443.0,38442.0,0.58793635]
[1643766365170,0.021228,38443.0,38442.0,0.96767735]
[1643766365365,0.01811681,38448.0,38442.0,0.96767735]
[1643766365571,0.00122799,38444.0,38442.0,0.61820635]
[1643766366067,0.00122799,38444.0,38442.0,0.16820635]
[1643766366268,0.00122799,38444.0,38442.0,0.13793635]
[1643766366467,0.02,38446.0,38442.0,0.05]
[1643766366666,0.02,38446.0,38445.0,0.24871655]
[1643766367267,0.2418824,38450.0,38445.0,0.24871655]
[1643766367869,0.2418824,38450.0,38442.0,0.05]
[1643766367870,0.26149543,38449.0,38442.0,0.065037]
[1643766368069,0.26149543,38449.0,38440.0,0.130066]
[1643766368070,0.26714138,38449.0,38440.0,0.130066]
[1643766368270,0.02,38448.0,38443.0,0.02]
[1643766368919,0.11760585,38448.0,38443.0,0.02]
[1643766369118,0.20483294,38444.0,38443.0,0.02]
[1643766370120,0.20483294,38444.0,38441.0,0.30569043]
[1643766370921,0.20483294,38444.0,38437.0,0.1227]
[1643766371127,0.53205855,38444.0,38436.0,0.00055]
[1643766371326,0.202,38443.0,38438.0,0.02]
[1643766371524,0.30689358,38442.0,38438.0,0.02]
[1643766371720,0.38125052,38439.0,38438.0,0.02]
[1643766371921,0.65310587,38439.0,38438.0,0.02]
[1643766372169,0.43914537,38439.0,38438.0,0.02]
[1643766372364,0.64548898,38439.0,38436.0,0.00055]
[1643766372564,0.64548898,38439.0,38433.0,0.28281514]
[1643766372765,0.13914537,38439.0,38435.0,0.00096855]
[1643766373165,0.21880305,38438.0,38435.0,0.02096855]
[1643766373765,0.12295252,38439.0,38435.0,0.02]
[1643766373968,0.12295252,38439.0,38435.0,0.02096856]
[1643766374966,0.21626002,38438.0,38435.0,0.02]
[1643766375169,0.12295252,38439.0,38435.0,0.00096855]
[1643766376116,0.35368278,38439.0,38435.0,0.02]
[1643766376416,0.35368278,38439.0,38435.0,0.02096855]
[1643766376417,0.12295252,38439.0,38435.0,0.02096855]
[1643766377418,0.12295252,38439.0,38435.0,0.02]
[1643766377617,0.12295252,38439.0,38435.0,0.15002349]
[1643766377818,0.12295252,38439.0,38435.0,0.02096855]
[1643766378620,0.12295252,38439.0,38435.0,0.02]
[1643766378820,0.2567578,38438.0,38435.0,0.02096855]
[1643766379670,0.07095252,38439.0,38435.0,0.02096855]
[1643766379867,0.02,38440.0,38436.0,0.349471]
[1643766380266,0.02,38440.0,38436.0,0.399471]
[1643766380667,0.00122792,38443.0,38436.0,0.399471]
[1643766380868,0.00122792,38443.0,38442.0,0.31893308]
[1643766381067,0.08543776,38448.0,38442.0,0.31893308]
[1643766381269,0.00122798,38443.0,38442.0,0.31893308]
[1643766381468,0.00122798,38443.0,38442.0,0.63782536]
[1643766381671,0.00122798,38443.0,38442.0,1.08929636]
[1643766381672,2.798e-05,38443.0,38442.0,1.08929636]
[1643766381868,2.798e-05,38443.0,38442.0,1.16994858]
[1643766382071,0.02039944,38448.0,38444.0,0.79931484]
[1643766382267,0.02,38457.0,38447.0,0.06502]
[1643766382467,0.02,38457.0,38448.0,0.33117641]
[1643766382867,0.02,38457.0,38456.0,0.23780101]
[1643766385127,0.02,38457.0,38455.0,0.07]
[1643766385327,0.02,38457.0,38455.0,0.02]
[1643766385328,0.01,38457.0,38455.0,0.02]
[1643766386127,0.01,38457.0,38450.0,0.23071098]
[1643766386327,0.06502776,38456.0,38450.0,0.28071098]
[1643766386728,0.06502776,38456.0,38450.0,0.34573598]
[1643766386929,0.06502776,38456.0,38450.0,0.55105132]
[1643766387180,0.00107754,38455.0,38451.0,0.02]
[1643766387774,0.00107754,38455.0,38452.0,0.09450554]
[1643766387974,0.00107754,38455.0,38451.0,0.02]
[1643766388274,0.06502776,38456.0,38451.0,0.02]
[1643766388476,0.27839652,38455.0,38451.0,0.02]
[1643766389177,0.00107754,38455.0,38451.0,0.02]
[1643766389375,0.01846716,38456.0,38451.0,0.22538489]
[1643766389575,0.00110307,38455.0,38452.0,0.06502]
[1643766390675,0.01846716,38456.0,38452.0,0.06502]
[1643766390919,0.00110306,38455.0,38452.0,0.06502]
[1643766391521,0.00110306,38455.0,38451.0,0.02]
[1643766391721,0.0834915,38456.0,38451.0,0.02]
[1643766391922,0.21878434,38453.0,38451.0,0.02]
[1643766392121,0.21878434,38453.0,38450.0,0.29573598]
[1643766392322,0.00110307,38455.0,38451.0,0.05]
[1643766392525,0.00110307,38455.0,38451.0,0.20580074]
[1643766393022,0.08501967,38459.0,38450.0,0.34573598]
[1643766393222,0.20665592,38455.0,38453.0,0.02]
[1643766393422,0.00089738,38454.0,38453.0,0.02]
[1643766394121,0.00089738,38454.0,38451.0,0.05]
[1643766394323,0.00089738,38454.0,38450.0,0.28071098]
[1643766394766,0.06592502,38454.0,38450.0,0.28071098]
[1643766395168,0.06592502,38454.0,38450.0,0.30071098]
[1643766395366,0.06592502,38454.0,38450.0,0.25071098]
[1643766395570,0.06702381,38454.0,38450.0,0.31573698]
[1643766396069,0.06702381,38454.0,38450.0,0.36573698]
[1643766396767,0.06702453,38454.0,38450.0,0.36573698]
[1643766397170,0.00199689,38454.0,38450.0,0.36573698]
[1643766397773,0.00089738,38454.0,38450.0,0.36573698]
[1643766397973,0.00199689,38454.0,38450.0,0.36573698]
[1643766398617,0.00199689,38454.0,38451.0,0.20959727]
[1643766398818,0.00199689,38454.0,38451.0,0.33963327]
[1643766399017,0.00089738,38454.0,38451.0,0.33963327]
[1643766399217,0.00199688,38454.0,38451.0,0.33963327]
[1643766399818,0.00199688,38454.0,38452.0,0.20002651]
[1643766400017,0.00199688,38454.0,38451.0,0.33963327]
[1643766400217,0.00089738,38454.0,38451.0,0.33963327]
[1643766400619,0.00089738,38454.0,38453.0,0.05]
[1643766400818,0.00089738,38454.0,38453.0,0.62133924]
[1643766401617,0.00089738,38454.0,38453.0,0.86178051]
[1643766401818,0.00089738,38454.0,38453.0,0.91178051]
[1643766402870,0.00089738,38454.0,38453.0,1.00821897]
[1643766403077,0.00089738,38454.0,38453.0,0.95821897]
[1643766405475,0.00089738,38454.0,38453.0,0.399471]
[1643766405681,0.00089738,38454.0,38453.0,0.05]
[1643766405922,0.02,38459.0,38452.0,0.05]
[1643766405923,0.01699677,38459.0,38452.0,0.05]
[1643766406126,0.03694724,38459.0,38452.0,0.05]
[1643766406324,0.01699677,38459.0,38452.0,0.05]
[1643766406524,0.2680985,38456.0,38452.0,0.05]
[1643766407428,0.01699677,38459.0,38453.0,0.414487]
[1643766407626,0.01699677,38459.0,38457.0,0.27990746]
[1643766407825,0.01699677,38459.0,38457.0,0.32990746]
[1643766408027,0.02049923,38458.0,38457.0,0.32990746]
[1643766408231,0.02049923,38458.0,38451.0,0.130036]
[1643766408428,0.22315567,38456.0,38451.0,0.40431293]
[1643766408630,0.02049923,38458.0,38451.0,0.40431293]
[1643766408831,0.00382223,38460.0,38451.0,0.40431293]
[1643766409228,0.01699678,38458.0,38452.0,0.28968455]
[1643766409429,0.06501849,38457.0,38452.0,0.32968455]
[1643766409687,0.3214768,38457.0,38452.0,0.32968455]
[1643766410477,0.06501849,38457.0,38452.0,0.32968455]
[1643766410676,0.01699678,38458.0,38453.0,0.065017]
[1643766411279,0.00123073,38457.0,38453.0,0.065017]
[1643766412277,0.01699678,38458.0,38454.0,0.349471]
[1643766412476,0.01699678,38458.0,38453.0,0.065017]
[1643766412477,0.00123074,38457.0,38453.0,0.065017]
[1643766412677,0.00123074,38457.0,38454.0,0.349471]
[1643766412877,0.00123074,38457.0,38454.0,0.399471]
[1643766413077,0.00123074,38457.0,38454.0,0.05]
[1643766413538,0.01699678,38458.0,38454.0,0.05]
[1643766413738,0.00123073,38457.0,38454.0,0.05]
[1643766414137,0.00123073,38457.0,38455.0,0.349471]
[1643766414537,0.01699678,38458.0,38456.0,0.09279]
[1643766414742,0.01699678,38458.0,38457.0,0.48085495]
[1643766414940,0.0182275,38458.0,38457.0,0.48085495]
[1643766415140,0.00123072,38458.0,38457.0,0.48085495]
[1643766415839,0.00382223,38460.0,38457.0,0.48085495]
[1643766416042,0.00382223,38460.0,38459.0,0.26015409]
[1643766417873,0.00081901,38460.0,38459.0,0.26015409]
[1643766418075,0.26515859,38464.0,38459.0,0.26015409]
[1643766418375,0.02,38462.0,38459.0,0.26015409]
[1643766419174,0.06501153,38463.0,38459.0,0.26015409]
[1643766419576,0.06560991,38463.0,38459.0,0.26015409]
[1643766420578,0.06501153,38463.0,38459.0,0.26015409]
[1643766420779,0.06609965,38463.0,38459.0,0.26015409]
[1643766421925,0.06501153,38463.0,38459.0,0.26015409]
[1643766422125,0.06609965,38463.0,38459.0,0.26015409]
[1643766423128,0.06501153,38463.0,38459.0,0.26015409]
[1643766423328,0.06624373,38463.0,38459.0,0.26015409]
[1643766424129,0.06501153,38463.0,38459.0,0.26015409]
[1643766424528,0.06624373,38463.0,38459.0,0.26015409]
[1643766425473,0.06501153,38463.0,38459.0,0.26015409]
[1643766425673,0.06624373,38463.0,38459.0,0.31015409]
[1643766426574,0.06501153,38463.0,38459.0,0.31015409]
[1643766426773,0.06624373,38463.0,38459.0,0.31015409]
[1643766426975,0.05124373,38463.0,38459.0,0.31015409]
[1643766427774,0.05001153,38463.0,38459.0,0.31015409]
[1643766427976,0.05124373,38463.0,38459.0,0.31015409]
[1643766428825,0.05124373,38463.0,38459.0,0.26015409]
[1643766429028,0.05001153,38463.0,38459.0,0.26015409]
[1643766429225,0.05124373,38463.0,38459.0,0.26015409]
[1643766430226,0.05124373,38463.0,38459.0,0.46630261]
[1643766430227,0.05001153,38463.0,38459.0,0.46630261]
[1643766430426,0.05124373,38463.0,38459.0,0.26015409]
[1643766431427,0.05001153,38463.0,38459.0,0.26015409]
[1643766431630,0.05124373,38463.0,38459.0,0.26015409]
[1643766432680,0.05001153,38463.0,38459.0,0.26015409]
[1643766432877,0.05124373,38463.0,38459.0,0.26015409]
[1643766433878,0.05001153,38463.0,38459.0,0.26015409]
[1643766434077,0.05124373,38463.0,38459.0,0.31015409]
[1643766434283,0.05124373,38463.0,38459.0,0.26015409]
[1643766435078,0.05001153,38463.0,38459.0,0.26015409]
[1643766435279,0.05124373,38463.0,38459.0,0.26015409]
[1643766436129,0.05001153,38463.0,38459.0,0.26015409]
[1643766436529,0.05124373,38463.0,38459.0,0.26015409]
[1643766436732,0.05124373,38463.0,38459.0,0.31015409]
[1643766437329,0.05001153,38463.0,38459.0,0.31015409]
[1643766437530,0.02,38464.0,38460.0,0.065008]
[1643766437730,0.0012322,38463.0,38460.0,0.065008]
[1643766438642,0.02,38464.0,38460.0,0.065008]
[1643766438832,0.00123219,38463.0,38460.0,0.065008]
[1643766439892,0.02,38464.0,38460.0,0.065008]
[1643766440091,0.00123219,38463.0,38460.0,0.065008]
[1643766441090,0.02,38464.0,38460.0,0.065008]
[1643766441291,0.00123219,38463.0,38460.0,0.065008]
[1643766442293,0.02,38464.0,38460.0,0.065008]
[1643766442492,0.00123219,38463.0,38460.0,0.065008]
[1643766443532,0.02,38464.0,38460.0,0.065008]
[1643766443732,0.00123219,38463.0,38460.0,0.065008]
[1643766444334,0.06624302,38463.0,38460.0,0.065008]
[1643766444533,0.06501083,38463.0,38460.0,0.065008]
[1643766444933,0.06624302,38463.0,38460.0,0.065008]
[1643766445732,0.06501083,38463.0,38460.0,0.065008]
[1643766446134,0.06624302,38463.0,38460.0,0.065008]
[1643766446932,0.06501083,38463.0,38460.0,0.065008]
[1643766447189,0.06624302,38463.0,38460.0,0.065008]
[1643766448282,0.06501083,38463.0,38460.0,0.065008]
[1643766448482,0.06624302,38463.0,38460.0,0.26849545]
[1643766448681,0.06624302,38463.0,38460.0,0.065008]
[1643766448882,0.06624302,38463.0,38460.0,0.27194176]
[1643766449182,0.06624302,38463.0,38460.0,0.065008]
[1643766449381,0.06501083,38463.0,38460.0,0.065008]
[1643766449582,0.06624302,38463.0,38460.0,0.05726947]
[1643766449783,0.06624302,38463.0,38460.0,0.26178224]
[1643766449784,0.00123219,38463.0,38460.0,0.26178224]
[1643766449987,0.00123219,38463.0,38461.0,0.349471]
[1643766450185,0.00123219,38463.0,38462.0,0.23719303]
[1643766450384,0.00123219,38463.0,38462.0,0.58666403]
[1643766450684,0.01,38469.0,38463.0,0.064997]
[1643766450932,0.01,38469.0,38465.0,0.3584305]
[1643766451133,0.01,38469.0,38466.0,0.2030158]
[1643766451835,0.01,38469.0,38467.0,0.20999664]
[1643766452035,0.01123211,38469.0,38467.0,0.20999664]
[1643766452937,0.01123211,38469.0,38467.0,0.25999664]
[1643766453138,0.01,38469.0,38467.0,0.25999664]
[1643766453737,0.01,38469.0,38468.0,0.08185042]
[1643766454339,0.01,38469.0,38468.0,0.17313228]
[1643766454537,0.01,38469.0,38468.0,0.08185042]
[1643766454777,0.01,38469.0,38467.0,0.25999664]
[1643766457182,0.01,38469.0,38467.0,0.05]
[1643766457684,0.01,38469.0,38467.0,0.15743359]
[1643766457881,0.01,38469.0,38468.0,0.81014335]
[1643766458280,0.01,38469.0,38468.0,0.91014335]
[1643766458524,0.01,38469.0,38468.0,1.17737116]
[1643766459324,0.005,38469.0,38468.0,1.75782512]
[1643766459727,0.005,38469.0,38468.0,1.80782512]
[1643766460125,0.005,38469.0,38468.0,1.69915277]
[1643766460328,0.005,38469.0,38468.0,1.39915277]
[1643766462902,0.005,38469.0,38468.0,0.89915277]
[1643766464801,0.005,38469.0,38468.0,0.401471]
[1643766465001,0.005,38469.0,38467.0,0.23543357]
[1643766465002,0.005,38469.0,38467.0,0.194947]
[1643766465200,0.005,38469.0,38466.0,0.084995]
[1643766465201,0.057,38469.0,38466.0,0.084995]
[1643766465405,0.057,38469.0,38466.0,0.02]
[1643766465800,0.2169221,38467.0,38466.0,0.02]
[1643766466034,0.2689221,38467.0,38466.0,0.02]
[1643766466434,0.2689221,38467.0,38462.0,0.29497417]
[1643766467236,0.2689221,38467.0,38463.0,0.02]
[1643766467436,0.052,38467.0,38463.0,0.02]
[1643766467638,0.00123215,38466.0,38463.0,0.02]
[1643766467836,0.06622931,38466.0,38463.0,0.02]
[1643766468336,0.00123215,38466.0,38463.0,0.02]
[1643766468737,0.005,38469.0,38466.0,0.27034846]
[1643766469036,0.06999773,38469.0,38466.0,0.32034846]
[1643766469438,0.06999773,38469.0,38463.0,0.02]
[1643766469979,0.06999773,38469.0,38463.0,0.085001]
[1643766470179,0.00123213,38468.0,38463.0,0.135001]
[1643766470585,0.00123213,38468.0,38464.0,0.27650161]
[1643766470981,0.06999773,38469.0,38464.0,0.27650161]
[1643766471180,0.00123213,38468.0,38464.0,0.27650161]
[1643766471383,0.00123213,38468.0,38464.0,0.40649161]
[1643766472182,0.005,38469.0,38464.0,0.40649161]
[1643766472381,0.005,38469.0,38466.0,0.27315044]
[1643766472586,0.005,38469.0,38466.0,0.40312544]
[1643766472783,0.005,38469.0,38467.0,0.349471]
[1643766474733,0.005,38469.0,38467.0,0.399471]
[1643766475634,0.005,38469.0,38468.0,0.13628636]
[1643766475837,0.005,38469.0,38468.0,0.74575736]
[1643766476234,0.00465088,38469.0,38468.0,0.74575736]
[1643766476435,0.00465088,38469.0,38468.0,0.349471]
[1643766478177,0.00465088,38469.0,38467.0,0.05]
[1643766478381,0.00465088,38469.0,38466.0,0.33813744]
[1643766478382,0.00465088,38469.0,38466.0,0.064987]
[1643766478578,0.06964484,38469.0,38466.0,0.064987]
[1643766479577,0.07087881,38469.0,38466.0,0.064987]
[1643766480578,0.06964484,38469.0,38466.0,0.064987]
[1643766481030,0.07087881,38469.0,38466.0,0.064987]
[1643766481831,0.06964484,38469.0,38466.0,0.064987]
[1643766482029,0.07087881,38469.0,38466.0,0.064987]
[1643766483130,0.06964484,38469.0,38466.0,0.064987]
[1643766483330,0.07087881,38469.0,38466.0,0.064987]
[1643766484233,0.06964484,38469.0,38466.0,0.064987]
[1643766484434,0.07087881,38469.0,38466.0,0.064987]
[1643766485083,0.00588485,38469.0,38466.0,0.064987]
[1643766485481,0.00465088,38469.0,38466.0,0.064987]
[1643766485682,0.00588485,38469.0,38466.0,0.064987]
[1643766485883,0.00588485,38469.0,38467.0,0.349471]
[1643766486084,0.00588485,38469.0,38467.0,0.399471]
[1643766486282,0.00588485,38469.0,38468.0,0.349471]
[1643766486682,0.00465088,38469.0,38468.0,0.44852985]
[1643766487383,0.00465088,38469.0,38468.0,0.67644952]
[1643766487581,0.00465088,38469.0,38468.0,0.16404485]
[1643766487782,0.00465088,38469.0,38468.0,0.51351585]
[1643766487984,0.00465088,38469.0,38468.0,0.414457]
[1643766488282,0.00465088,38469.0,38468.0,0.349471]
[1643766488929,0.26465088,38469.0,38468.0,0.349471]
[1643766489130,0.26465088,38469.0,38466.0,0.064987]
[1643766489131,0.48259854,38469.0,38466.0,0.064987]
[1643766489331,0.21794766,38468.0,38466.0,0.064987]
[1643766489529,0.26465088,38469.0,38466.0,0.064987]
[1643766490032,0.26465088,38469.0,38463.0,0.02]
[1643766490033,0.21794766,38468.0,38463.0,0.02]
[1643766490231,0.48860376,38468.0,38463.0,0.02]
[1643766490531,0.48860376,38468.0,38455.0,0.05098582]
[1643766490532,0.0125,38464.0,38455.0,0.05098582]
[1643766490730,0.052,38463.0,38455.0,0.00098582]
[1643766490931,0.35897639,38456.0,38448.0,0.01]
[1643766491131,0.26994766,38455.0,38448.0,0.01]
[1643766491334,0.48498175,38455.0,38450.0,0.02]
[1643766491531,0.24676632,38454.0,38450.0,0.015]
[1643766491730,0.13719104,38452.0,38450.0,0.015]
[1643766491931,0.542,38451.0,38450.0,0.015]
[1643766492379,0.642,38451.0,38448.0,0.015]
[1643766492979,0.68199606,38451.0,38448.0,0.01549178]
[1643766493180,0.71835167,38449.0,38448.0,0.01549178]
[1643766493380,0.71835167,38449.0,38448.0,0.01049178]
[1643766493381,1.10256978,38449.0,38448.0,0.01049178]
[1643766493783,1.20256978,38449.0,38448.0,0.01049178]
[1643766493983,1.10256978,38449.0,38448.0,0.01]
[1643766495482,1.10256978,38449.0,38447.0,0.01098111]
[1643766495683,0.69210876,38448.0,38447.0,0.01098111]
[1643766495936,0.79410876,38448.0,38447.0,0.01098111]
[1643766496336,0.79410876,38448.0,38447.0,0.01]
[1643766496937,0.30410876,38448.0,38447.0,0.01]
[1643766497139,0.10789307,38448.0,38447.0,0.01]
[1643766497339,0.25231419,38448.0,38447.0,0.01]
[1643766497539,0.05789307,38448.0,38447.0,0.01]
[1643766497739,0.29789307,38448.0,38447.0,0.01]
[1643766498541,0.49331189,38448.0,38447.0,0.01]
[1643766498742,0.67732984,38448.0,38447.0,0.01]
[1643766499442,0.89438998,38448.0,38447.0,0.01]
[1643766499692,0.89438998,38448.0,38441.0,0.0031]
[1643766499693,0.6006421,38446.0,38441.0,0.0031]
[1643766499983,0.54917945,38445.0,38441.0,0.0031]
[1643766500183,0.64917945,38445.0,38441.0,0.0031]